[Event "TUR-ch U13-18 Open 2023"]
[Site "Antalya"]
[Date "2023.01.24"]
[Round "4"]
[White "Engin, Onur Cinar"]
[Black "Anacak, Hasan Gunes"]
[Result "1/2-1/2"]
[ECO "B06"]
[WhiteElo "1990"]
[BlackElo "1898"]
[Annotator "TA"]
[PlyCount "93"]
[EventDate "2023.01.17"]
[EventType "swiss"]
[EventCountry "TUR"]
[SourceTitle "playchess.com"]
[Source "ChessBase"]
[SourceQuality "1"]
[TimeControl "5400+30"]

{[%evp 11,93,51,35,11,16,29,25,14,21,26,14,14,10,11,19,13,23,28,45,30,19,31,71,44,111,5,9,0,47,45,21,48,66,50,75,28,34,33,46,34,31,37,31,0,8,0,30,0,0,0,47,-179,-45,-144,0,0,32,39,45,-51,0,-22,0,-28,-28,-108,-48,-64,-42,-129,-124,-120,-130,-123,-125,-154,-143,-344,-370,-468,-468,-413,-309,-246]} 1. e4 {[%emt 0:01:00]} c5 {[%emt 0:03:00]} 2. c3 {[%emt 0:00:00]} d5 {[%emt 0:01:30]} 3. exd5 {[%emt 0:00:00]} Qxd5 {[%emt 0:05:30]} 4. d4 {[%emt 0:00:30]} g6 {[%emt 0:00:30]} 5. Nf3 {[%emt 0:01:30]} Bg7 {[%emt 0:00:30]} 6. Na3 {[%emt 0:02:30]} cxd4 {[%emt 0:00:30]} 7. Nb5 {[%emt 0:01:30] B06: Modern Defence.} (7. Bc4 $5 {[%cal Rc4d5]} Qa5 8. Nxd4 $14) 7... Na6 {[%emt 0:01:30] Repels Nc7+} 8. Nbxd4 $1 {[%emt 0:00:30] 8.Nbxd4 is better than 8.Be3.} Nf6 {[%emt 0:00:30]} 9. Bb5+ {[%emt 0:01:30] White has an edge.} Bd7 {[%emt 0:00:30]} 10. Bxa6 {[%emt 0:00:30]} bxa6 {[%emt 0:00:30]} 11. O-O {[%emt 0:00:30]} O-O {[%emt 0:00:00]} 12. Re1 {[%emt 0:01:30]} Rfe8 {[%emt 0:00:00]} 13. Ne5 {[%emt 0:02:30]} Bc8 {[%emt 0:00:00]} 14. Qb3 {[%emt 0:09:30] [#]} (14. Ndc6 {simplifies} Qxd1 15. Rxd1 Be6 16. Nd4) 14... Rb8 $146 {[%emt 0:00:00]} ({Predecessor:} 14... Bb7 15. Qxd5 Bxd5 16. c4 Bb7 17. f3 Rac8 18. b3 Red8 19. Bb2 e6 20. Rad1 Nd7 {0-1 Keller,P (2377)-Sirosh,I (2402) Titled Tuesday intern op 24th May Late blitz 2022 (7)}) 15. Qxd5 {[%emt 0:01:30]} (15. Qxb8 {with more complications.} Bh3 16. Qxe8+ Nxe8 17. Nef3) 15... Nxd5 {[%emt 0:00:00]} 16. c4 {[%emt 0:07:30]} Nf6 {[%emt 0:10:00]} 17. b3 {[%emt 0:03:30] White is more active.} (17. Nec6 $5 {[%cal Rc6b8]} Rb7 18. b3 $14) 17... Ng4 {[%emt 0:42:30] [#]} (17... Bb7 $14) 18. f4 {[%emt 0:11:30]} (18. Nec6 $1 $16) 18... Bb7 $11 {[%emt 0:06:30]} (18... Nxe5 {simplifies} 19. fxe5 Bb7 20. Ba3 a5) 19. Bb2 {[%emt 0:01:30]} Rbd8 {[%emt 0:04:30]} (19... Nxe5 $11 {was preferrable.} 20. fxe5 Rbc8) 20. Rad1 {[%emt 0:01:30]} Nxe5 {[%emt 0:06:37]} 21. fxe5 {[%emt 0:00:30]} Rd7 {[%emt 0:00:10]} 22. Nf3 {[%emt 0:04:30]} Rc7 {[%emt 0:08:56]} 23. Rd3 {[%emt 0:01:30] Black is weak on the dark squares} (23. Bc3 $16) 23... a5 {[%emt 0:04:51][%cal Oa5a4]} 24. Red1 {[%emt 0:04:30]} a4 {[%emt 0:00:07]} 25. Rd8 {[%emt 0:07:30]} ({Reject} 25. bxa4 Rxc4 26. Rd8 Rf8 $17) 25... Rc8 {[%emt 0:00:11]} 26. Rxe8+ {[%emt 0:02:30]} Rxe8 {[%emt 0:00:00]} 27. b4 {[%emt 0:02:30]} (27. Rd7 $5 {[%cal Rd7b7]} Be4 28. Rxa7 $16) 27... Rc8 {[%emt 0:01:53]} 28. c5 {[%emt 0:02:30] aiming for Rd7.} a5 {[%emt 0:00:30]} 29. a3 {[%emt 0:00:30]} ({Much weaker is} 29. bxa5 Rxc5 30. Rd7 Bxf3 31. gxf3 Rxa5 32. Rxe7 h5 $11) 29... axb4 {[%emt 0:00:30]} 30. axb4 {[%emt 0:00:30]} Rb8 {[%emt 0:02:53]} (30... Bc6 $11) 31. Nd2 $2 {[%emt 0:10:03] [#]} (31. Bc3 $14 {keeps the upper hand.}) 31... Bd5 {[%emt 0:00:36] A strong pair of Bishops.} (31... Bc6 $1 $19 32. Bc3 Rd8) 32. Bc3 {[%emt 0:01:22]} ({White should play} 32. Nf3 $15 e6 33. Ba3) 32... e6 {[%emt 0:00:40]} (32... a3 $17 33. Nf3 e6) 33. Nb1 {[%emt 0:01:09]} Bf8 {[%emt 0:00:27]} 34. Na3 {[%emt 0:01:10]} Be7 {[%emt 0:00:23]} 35. Be1 {[%emt 0:01:10]} (35. Kf2 $14) 35... Kf8 {[%emt 0:00:21]} ({Black should try} 35... f6 $15) 36. Bd2 {[%emt 0:02:07]} Ke8 {[%emt 0:00:30]} 37. Rc1 {[%emt 0:00:00]} f6 {[%emt 0:00:25][%cal Bf7f6,Bf6f5][%mdl 32]} 38. Nc4 {[%emt 0:02:25]} (38. b5 $11 {remains equal.}) 38... Bxc4 {[%emt 0:00:43]} ({Better is} 38... fxe5 $17 {Strongly threatening ...Rd8.} 39. Nb6 Bc6) 39. Rxc4 $17 {[%emt 0:00:04][%mdl 4096] Endgame KRB-KRB} Kd8 {[%emt 0:00:44]} 40. Bc3 {[%emt 0:00:47]} (40. exf6 $1 $15 Bxf6 41. Bc1) 40... f5 {[%emt 0:00:27]} 41. Kf2 {[%emt 0:05:14]} Kc7 {[%emt 0:00:03]} 42. Ke2 {[%emt 0:03:09]} Kc6 {[%emt 0:00:04]} 43. Rd4 {[%emt 0:01:37]} Rd8 {[%emt 0:00:22]} 44. Kd3 {[%emt 0:00:54]} (44. b5+ $17 {was called for.} Kxb5 45. Rb4+ Kxc5 46. Rxa4) 44... Rxd4+ $19 {[%emt 0:00:52]} 45. Bxd4 {[%emt 0:01:03] Black must now prevent Kc4.} Kb5 {[%emt 0:00:17]} 46. Kc3 {[%emt 0:00:29]} Bf8 {[%emt 0:00:37]} 47. Be3 {[%emt 0:00:33] Weighted Error Value: White=0.38/Black=0.25 (precise)} 1/2-1/2

[Event "TUR-ch U13-18 Open 2023"]
[Site "Antalya"]
[Date "2023.01.24"]
[Round "4"]
[White "Temizer, Umut"]
[Black "Acar, Erdogan"]
[Result "1-0"]
[ECO "B45"]
[WhiteElo "1989"]
[BlackElo "1631"]
[Annotator "TA"]
[PlyCount "109"]
[EventDate "2023.01.17"]
[EventType "swiss"]
[EventCountry "TUR"]
[SourceTitle "playchess.com"]
[Source "ChessBase"]
[SourceQuality "1"]
[TimeControl "5400+30"]

{[%evp 23,109,16,24,19,6,0,0,0,26,0,59,48,57,55,51,35,58,51,80,58,70,69,57,63,76,74,118,114,217,128,144,159,146,137,133,134,135,132,913,918,788,639,461,381,1296,1142,29964,29964,29965,29967,29969,29969,29972,29972,29974,29974,29975,29974,29976,29977,29978,29979,29982,29983,29984,29985,29985,29984,29984,29985,29987,29988,29987,29988,29988,29989,29989,29989,29993,29994,29994,1008,29993,29994,29994,29992,29993,29994]} 1. e4 {[%emt 0:05:00]} c5 {[%emt 0:02:00]} 2. Nf3 {[%emt 0:00:30][%cal Bg1f3,Bf3d4,Bd4b5][%mdl 32]} e6 {[%emt 0:01:30]} 3. d4 {[%emt 0:02:30]} cxd4 {[%emt 0:00:30]} 4. Nxd4 {[%emt 0:00:30]} Nf6 {[%emt 0:00:00]} 5. Nc3 {[%emt 0:05:30]} Nc6 {[%emt 0:00:00]} 6. Ndb5 {[%emt 0:01:30]} Bb4 {[%emt 0:00:30]} 7. a3 {[%emt 0:02:30]} Bxc3+ {[%emt 0:00:30]} 8. Nxc3 {[%emt 0:00:00]} d5 {[%emt 0:00:30]} 9. Bd3 {[%emt 0:04:00][%cal Bf1d3,Bd3e4,Be4f3,Bf3e2][%mdl 32]} dxe4 {[%emt 0:07:30]} 10. Nxe4 {[%emt 0:02:30]} Nxe4 {[%emt 0:01:30]} 11. Bxe4 {[%emt 0:00:30]} Qxd1+ {[%emt 0:01:30]} 12. Kxd1 {[%emt 0:00:30]} Bd7 {[%emt 0:02:30]} 13. Be3 {[%emt 0:04:30] B45: Sicilian Four Knights.} f5 {[%emt 0:14:30] 13...f5 scores better than 13...0-0-0.} 14. Bf3 {[%emt 0:01:30]} e5 {[%emt 0:14:30]} 15. Kc1 {[%emt 0:03:30] The position is equal.} O-O-O {[%emt 0:13:30]} 16. Rd1 {[%emt 0:03:30]} e4 {[%emt 0:08:30]} (16... f4 $11 17. Bc5 b6) 17. Be2 $14 {[%emt 0:00:30]} Be6 {[%emt 0:00:30]} 18. b3 {[%emt 0:00:30]} Rxd1+ {[%emt 0:03:30]} 19. Bxd1 {[%emt 0:01:30]} Rd8 {[%emt 0:01:30]} 20. Kb2 {[%emt 0:04:30] [#]} Nd4 $146 {[%emt 0:06:25]} ({Predecessor:} 20... a6 21. Be2 Ne5 22. h3 h6 23. Rd1 Rxd1 24. Bxd1 g5 25. Bd4 Ng6 26. Bg7 h5 {1-0 Sanz Rodero,M (1982)-Perez Malvido,J (1842) ESP-ch U18 Padron 2008 (5)}) 21. a4 {[%emt 0:00:30]} a5 {[%emt 0:04:09]} 22. Kc3 {[%emt 0:01:30]} Nc6 {[%emt 0:01:45]} 23. Bb6 {[%emt 0:04:30]} Rd5 {[%emt 0:02:53]} 24. Be2 {[%emt 0:01:30] Bc4 is the strong threat.} Nb4 {[%emt 0:06:35]} 25. Bc4 {[%emt 0:02:30] Threatens to win with Bxa5.} Kd7 {[%emt 0:01:28] [#]} 26. Bxa5 {[%emt 0:01:30]} Na2+ {[%emt 0:01:57]} 27. Rxa2 {[%emt 0:00:30]} Rxa5 {[%emt 0:00:02]} 28. Ra1 {[%emt 0:02:30]} Bxc4 {[%emt 0:00:57]} 29. Kxc4 $16 {[%emt 0:01:30][%mdl 4096] Endgame KR-KR} Kc6 {[%emt 0:00:01]} 30. b4 {[%emt 0:01:30] Against Rc5+} Rxa4 {[%emt 0:02:02][%mdl 8192] A mistake that costs the game.} (30... Ra8 $16 31. b5+ Kb6) 31. Rxa4 {[%emt 0:09:30] KR-KP} b5+ {[%emt 0:00:30]} 32. Kb3 {[%emt 0:00:30] Strongly threatening Ra6+.} bxa4+ {[%emt 0:00:30]} 33. Kxa4 $18 {[%emt 0:00:00] Black must now prevent c4. KP-KP} f4 $2 {[%emt 0:00:33]} (33... Kd5 34. Kb3 Kd4) 34. Kb3 {[%emt 0:00:00]} e3 {[%emt 0:00:30]} 35. fxe3 {[%emt 0:00:00]} fxe3 {[%emt 0:00:30]} 36. Kc3 {[%emt 0:00:00]} Kb5 {[%emt 0:00:30]} 37. h4 {[%emt 0:00:30][%cal Bh2h4,Bh4h5][%mdl 32]} Ka4 {[%emt 0:00:30]} 38. g4 {[%emt 0:00:30]} Kb5 {[%emt 0:00:30]} 39. h5 {[%emt 0:00:30]} Ka4 {[%emt 0:00:30]} 40. g5 {[%emt 0:00:30]} Kb5 {[%emt 0:00:00]} 41. Kd3 {[%emt 0:10:30]} Kxb4 {[%emt 0:00:00]} 42. Kxe3 {[%emt 0:01:30] K3P-KPP} Kc3 {[%emt 0:00:00]} 43. Ke4 {[%emt 0:00:00]} Kxc2 {[%emt 0:00:00] KPP-KPP} 44. Kf5 {[%emt 0:00:00]} Kd3 {[%emt 0:00:00]} 45. Ke6 {[%emt 0:00:30]} Ke4 {[%emt 0:01:02]} 46. Kf7 {[%emt 0:00:00]} h6 {[%emt 0:00:59]} 47. g6 {[%emt 0:00:00]} Kf5 {[%emt 0:00:30]} 48. Kxg7 {[%emt 0:00:30] KPP-KP} Kg5 {[%emt 0:00:30]} 49. Kf7 {[%emt 0:00:00]} Kxh5 {[%emt 0:00:00] KP-KP} 50. g7 {[%emt 0:00:00]} Kh4 {[%emt 0:00:22]} 51. g8=Q {[%emt 0:00:30]} h5 {[%emt 0:00:30]} 52. Qg1 {[%emt 0:00:30]} Kh3 {[%emt 0:00:00]} 53. Kg6 {[%emt 0:00:00] White mates.} h4 {[%emt 0:00:00]} 54. Qh1+ {[%emt 0:00:00]} Kg3 {[%emt 0:00:00]} 55. Kf5 {[%emt 0:00:00] Weighted Error Value: White=0.06 (flawless) /Black=0.26 (precise)} 1-0

[Event "TUR-ch U13-18 Open 2023"]
[Site "Antalya"]
[Date "2023.01.24"]
[Round "4"]
[White "Gungor, Cihan Akif"]
[Black "Topuz, Mirac Melih"]
[Result "1/2-1/2"]
[ECO "B47"]
[WhiteElo "1871"]
[BlackElo "2071"]
[Annotator "TA"]
[PlyCount "165"]
[EventDate "2023.01.17"]
[EventType "swiss"]
[EventCountry "TUR"]
[SourceTitle "playchess.com"]
[Source "ChessBase"]
[SourceQuality "1"]
[TimeControl "5400+30"]

{[%evp 24,165,41,41,53,45,33,33,33,35,37,49,56,50,50,50,47,49,63,58,93,89,99,84,104,61,68,62,80,87,117,112,110,116,108,114,145,123,153,63,119,0,38,37,85,83,85,81,79,81,71,59,56,52,68,75,147,143,147,147,147,147,143,143,239,147,147,147,160,153,153,149,150,152,154,156,176,124,147,93,208,208,270,91,208,208,276,215,215,124,124,124,127,52,47,36,41,36,36,0,0,0,0,0,8,0,0,0,0,0,0,0,0,0,0,0,0,0,0,0,7,0,0,0,0,0,0,0,0,0,0,0,0,0,0,0,0,0,0,0,0,0,8,8]} 1. e4 {[%emt 0:01:00]} c5 {[%emt 0:01:00]} 2. Nf3 {[%emt 0:00:30]} Nc6 {[%emt 0:00:30]} 3. d4 {[%emt 0:00:30]} cxd4 {[%emt 0:00:30]} 4. Nxd4 {[%emt 0:00:30]} Qc7 {[%emt 0:00:30]} 5. Nc3 {[%emt 0:00:30]} e6 {[%emt 0:00:30]} 6. g3 {[%emt 0:00:30]} a6 {[%emt 0:00:30]} 7. Bg2 {[%emt 0:00:30]} Nf6 {[%emt 0:00:30]} 8. O-O {[%emt 0:00:30]} Nxd4 {[%emt 0:00:30]} 9. Qxd4 {[%emt 0:00:30]} Bc5 {[%emt 0:00:30]} 10. Bf4 {[%emt 0:00:30]} d6 {[%emt 0:00:30]} 11. Qd2 {[%emt 0:00:30]} h6 {[%emt 0:00:30]} 12. Rad1 {[%emt 0:00:30]} e5 {[%emt 0:00:30]} 13. Be3 {[%emt 0:00:30]} Bb4 {[%emt 0:00:00] [#] 13...Bxe3 is setting a new trend. B47: Sicilian: Taimanov: 5 Nc3 Qc7 6 f4, 6 g3 and 6 Be2.} 14. Nb5 $1 {[%emt 0:10:30][%mdl 64] Discovered Attack} axb5 {[%emt 0:00:00]} 15. Qxb4 {[%emt 0:00:30]} Rxa2 {[%emt 0:00:00] White is slightly better.} 16. Rxd6 {[%emt 0:00:30] Black must now prevent Bb6.} O-O $1 {[%emt 0:00:00]} 17. Rd2 {[%emt 0:02:30]} Qc4 {[%emt 0:04:30]} 18. Qxc4 {[%emt 0:05:30]} bxc4 {[%emt 0:00:30]} 19. Bc5 {[%emt 0:01:30]} Re8 {[%emt 0:00:30]} 20. c3 {[%emt 0:00:00] [#]} Bd7 $146 {[%emt 0:15:30]} ({Predecessor:} 20... Ra5 21. Bb4 Ra8 22. Rfd1 Bg4 23. f3 Be6 24. h3 Nh5 25. Kf2 g5 26. Bf1 Rec8 {1-0 Blit,J (2321)-Latorre Lopez Moreira,L (2342) Asuncion CC Deportivo 100 Years 2022 (4)}) 21. f3 {[%emt 0:17:00]} Ba4 {[%emt 0:09:30]} 22. Bh3 {[%emt 0:02:30]} Ra8 {[%emt 0:29:30]} 23. Ba3 {[%emt 0:03:30]} Bc2 {[%emt 0:00:30][%cal Ob7b5]} 24. Rc1 {[%emt 0:09:30]} (24. Rxc2 $6 R8xa3 25. Rd1 Kf8 $11) 24... Bd3 {[%emt 0:00:30]} 25. Rcd1 {[%emt 0:00:00]} b5 {[%emt 0:22:08]} 26. Bf1 {[%emt 0:01:00]} Bc2 {[%emt 0:01:40]} 27. Rd8+ {[%emt 0:09:30]} (27. Rxc2 R8xa3 28. Rd8+ Kh7 $14) 27... Kh7 {[%emt 0:02:48]} 28. R1d2 {[%emt 0:02:30]} Rxd8 {[%emt 0:01:21]} 29. Rxd8 {[%emt 0:00:00]} g5 {[%emt 0:00:39]} 30. Rd6 {[%emt 0:02:00]} Kg7 {[%emt 0:02:06]} 31. Ra6 {[%emt 0:00:30]} (31. Rd2 $16 Bb1 32. Bd6) 31... Bb3 {[%emt 0:02:49]} (31... g4 $1 $14) 32. Bh3 {[%emt 0:01:30]} (32. Rb6 $16) 32... g4 {[%emt 0:00:30]} 33. Bxg4 {[%emt 0:00:30] Strongly threatening Bf5.} ({Don't play} 33. fxg4 Nxe4 34. Bf1 Kh7 $11) 33... Nxg4 {[%emt 0:00:30]} (33... b4 $1 $14 34. cxb4 c3 35. bxc3 Bc4) 34. fxg4 $14 {[%emt 0:00:30][%mdl 4096] Endgame KRB-KRB} Ra1+ {[%emt 0:00:30]} 35. Kf2 {[%emt 0:00:30][%cal Oa3f8] Threatens to win with Bf8+!} Rd1 {[%emt 0:00:30]} 36. Bd6 {[%emt 0:07:30]} Rd2+ {[%emt 0:04:53]} 37. Ke3 {[%emt 0:00:30]} Rd3+ {[%emt 0:00:35]} 38. Ke2 {[%emt 0:00:30]} Bd1+ {[%emt 0:00:00]} 39. Kf2 {[%emt 0:00:30]} Bxg4 {[%emt 0:00:30]} (39... f6 $142) 40. Bxe5+ $16 {[%emt 0:00:30]} Kh7 {[%emt 0:00:18]} 41. Bf4 {[%emt 0:00:30] Inhibits Rd2+.} h5 {[%emt 0:01:42]} 42. Rb6 {[%emt 0:00:30]} Kg7 {[%emt 0:00:00]} 43. Rxb5 {[%emt 0:00:00]} Rd7 {[%emt 0:00:29]} (43... Rd1 $16 44. Rb4 Be6) 44. Be5+ {[%emt 0:00:00]} Kg6 {[%emt 0:00:20]} 45. Rb6+ {[%emt 0:01:30]} Kh7 {[%emt 0:00:02]} 46. Ke3 {[%emt 0:00:30]} Be6 {[%emt 0:00:40]} 47. Kf4 {[%emt 0:01:30]} Kg6 {[%emt 0:00:50]} 48. Bd4 {[%emt 0:01:30]} Rd8 {[%emt 0:00:30]} 49. Rb5 {[%emt 0:00:00]} Ra8 {[%emt 0:00:36]} 50. Ke5 {[%emt 0:01:41]} ({White should play} 50. Rg5+ $18 Kh6 51. h4) 50... Ra6 {[%emt 0:00:36]} 51. Rb8 {[%emt 0:00:28]} (51. Be3 $142) 51... h4 {[%emt 0:00:25]} 52. gxh4 $18 {[%emt 0:00:43]} Ra1 {[%emt 0:00:29]} 53. Rb6 $2 {[%emt 0:01:09]} (53. Kf4 $18 {has better winning chances. White wants to mate with Rg8+.} Ra5 54. Be5) 53... Ra5+ {[%emt 0:00:33]} (53... Rh1 $16) 54. Kf4 {[%emt 0:00:31]} Ra1 {[%emt 0:00:30]} 55. Rb5 {[%emt 0:00:40]} Rf1+ {[%emt 0:00:10]} 56. Ke5 {[%emt 0:00:32]} (56. Kg3 $18) 56... Rh1 $16 {[%emt 0:00:00] [#]} 57. h5+ $1 {[%emt 0:03:04]} Kh7 {[%emt 0:01:15] [#]} (57... Kxh5 58. Kf4+) 58. Kf6 {[%emt 0:02:47]} ({White should try} 58. Be3 $1 $16) 58... Rxh2 $14 {[%emt 0:00:06]} 59. Ke7 {[%emt 0:00:53]} Rh4 {[%emt 0:00:31]} 60. Re5 {[%emt 0:02:31]} Rh2 {[%emt 0:00:01]} 61. Rxe6 {[%emt 0:00:30]} fxe6 {[%emt 0:00:55] The position is equal.} 62. Kxe6 {[%emt 0:00:30]} Rxh5 {[%emt 0:00:30] KR-KB} 63. e5 {[%emt 0:00:30]} Kg8 {[%emt 0:00:30]} 64. Kd7 {[%emt 0:00:30]} (64. Kd5 $5 Rh2 $8 65. e6 $11 (65. Kxc4 Rxb2 66. Be3 Kf8 $11)) 64... Rh2 {[%emt 0:00:30]} 65. e6 {[%emt 0:00:30] Threatening mate with e7.} Rxb2 {[%emt 0:00:30]} 66. e7 {[%emt 0:00:30]} Rb7+ {[%emt 0:00:30]} 67. Ke6 {[%emt 0:00:30]} (67. Kd8 $5 Rb8+ $8 68. Kc7 $11) 67... Rb8 {[%emt 0:00:30]} 68. Bc5 {[%emt 0:00:30]} Kg7 {[%emt 0:00:30]} 69. Ba7 {[%emt 0:00:30]} Re8 {[%emt 0:00:30]} 70. Bb6 {[%emt 0:00:30]} Kg6 {[%emt 0:00:30]} 71. Bd8 {[%emt 0:00:30]} Rh8 {[%emt 0:00:30]} 72. Kd5 {[%emt 0:00:30]} Kf7 {[%emt 0:00:30]} 73. Kxc4 {[%emt 0:00:30]} Ke6 {[%emt 0:00:30]} 74. Kb5 {[%emt 0:00:30] And now Kc6 would win.} Kd7 {[%emt 0:00:30]} 75. c4 {[%emt 0:00:30]} Rh1 {[%emt 0:00:30]} 76. c5 {[%emt 0:00:30]} Rb1+ {[%emt 0:00:30]} 77. Ka4 {[%emt 0:00:30]} Ra1+ {[%emt 0:00:30]} 78. Kb3 {[%emt 0:00:30]} Rc1 {[%emt 0:00:30]} 79. Kb4 {[%emt 0:00:30]} Rc2 {[%emt 0:00:30]} 80. Kb5 {[%emt 0:00:30]} Rc1 {[%emt 0:00:30]} 81. c6+ {[%emt 0:00:30]} Rxc6 {[%emt 0:00:30]} 82. e8=B+ {[%emt 0:00:30]} Kxd8 {[%emt 0:00:30]} 83. Bxc6 {[%emt 0:01:22] Black escapes into a draw.   Weighted Error Value: White=0.20 (precise) /Black=0.19 (very precise)} 1/2-1/2

[Event "TUR-ch U13-18 Open 2023"]
[Site "Antalya"]
[Date "2023.01.24"]
[Round "4"]
[White "Dirikolu, Deniz"]
[Black "Deveci, Huseyin Said"]
[Result "1-0"]
[ECO "B42"]
[WhiteElo "1868"]
[BlackElo "1987"]
[Annotator "TA"]
[PlyCount "83"]
[EventDate "2023.01.17"]
[EventType "swiss"]
[EventCountry "TUR"]
[SourceTitle "playchess.com"]
[Source "ChessBase"]
[SourceQuality "1"]
[TimeControl "5400+30"]

{[%evp 14,83,61,19,49,8,23,0,8,-38,-29,-66,-59,-75,-20,-18,-25,-20,-31,-91,-85,-75,10,8,30,37,85,83,79,89,78,43,120,19,10,0,0,0,0,0,0,0,0,0,0,6,6,0,0,0,0,0,0,-41,-14,-14,19,24,363,362,975,914,4790,3817,29977,29978,29987,29977,29977,29978,29991,29992]} 1. e4 {[%emt 0:01:00]} c5 {[%emt 0:01:00]} 2. Nf3 {[%emt 0:00:00]} e6 {[%emt 0:00:30]} 3. d4 {[%emt 0:00:00]} cxd4 {[%emt 0:00:30]} 4. Nxd4 {[%emt 0:00:30]} a6 {[%emt 0:00:30]} 5. Bd3 {[%emt 0:00:30]} Bc5 {[%emt 0:00:30]} 6. Nb3 {[%emt 0:00:30]} Ba7 {[%emt 0:00:00]} 7. O-O {[%emt 0:00:00]} Nc6 {[%emt 0:00:00]} 8. c4 {[%emt 0:01:00]} (8. Qg4 $5 {[%cal Rg4g7]}) 8... d6 {[%emt 0:00:00] B42: Sicilian: Kan Variation: 5 Bd3.} 9. Kh1 {[%emt 0:00:30]} Nf6 {[%emt 0:06:00]} (9... Qh4 {is more complex.} 10. f3 Nf6 11. Bd2 O-O) 10. Qe2 {[%emt 0:01:30] [#]} O-O $146 {[%emt 0:00:30] The position is equal.} ({Predecessor:} 10... e5 11. Nc3 Ng4 12. h3 Qh4 13. Be3 Nxe3 14. fxe3 O-O 15. Nd5 Bd7 16. Nd2 Rae8 {0-1 Cardona,C (1861)-Terao,J (2094) Pan American-ch U18 Girls 17th 2008 (1)}) 11. f4 {[%emt 0:00:30]} (11. Nc3 $11) 11... Nb4 $15 {[%emt 0:09:30]} 12. Rd1 {[%emt 0:02:30]} Qb6 {[%emt 0:06:30]} 13. h3 $1 {[%emt 0:20:30]} Bd7 {[%emt 0:35:30]} (13... d5 $17 {...Nxd3 would be deadly.} 14. c5 Qc6) 14. Nc3 $11 {[%emt 0:04:30]} Nxd3 {[%emt 0:03:30]} 15. Qxd3 {[%emt 0:00:30]} Bc6 {[%emt 0:00:30]} (15... Rfd8 {simplifies} 16. Nd4 Qxd4 17. Qxd4 Bxd4 18. Rxd4 Bc6) 16. Re1 {[%emt 0:08:30]} ({Better is} 16. Nd4 $15) 16... Qf2 $17 {[%emt 0:08:30]} 17. Be3 {[%emt 0:08:30]} Qg3 {[%emt 0:05:30]} (17... Bxe3 $17 18. Qxe3 Qxb2) 18. Rad1 $11 {[%emt 0:00:30]} Bxe3 {[%emt 0:09:21]} 19. Qxe3 {[%emt 0:00:30]} Qh4 {[%emt 0:00:00]} (19... Qxe3 $14 20. Rxe3 Rad8) 20. Kg1 $16 {[%emt 0:06:30]} Rfd8 {[%emt 0:02:51]} 21. Nd4 {[%emt 0:00:30]} Nh5 {[%emt 0:02:33]} 22. Nce2 {[%emt 0:00:30]} Rac8 {[%emt 0:00:55] [#]} ({Black should play} 22... e5 $14 23. Nf5 exf4 24. Nxh4 fxe3) 23. Nf3 {[%emt 0:15:30]} (23. g4 $1 $16 {[%cal Rg4h5]}) 23... Qe7 $1 $11 {[%emt 0:00:30]} 24. g4 {[%emt 0:00:30]} Nf6 {[%emt 0:00:30]} 25. Nc3 {[%emt 0:00:00]} b5 {[%emt 0:00:43]} 26. cxb5 {[%emt 0:00:00]} axb5 {[%emt 0:00:00]} 27. a3 {[%emt 0:01:30]} Qb7 {[%emt 0:01:13]} 28. Rd4 {[%emt 0:01:30]} d5 {[%emt 0:02:17]} 29. e5 {[%emt 0:00:30]} Ne4 {[%emt 0:00:30]} 30. Nxe4 {[%emt 0:00:30]} dxe4 {[%emt 0:00:30]} 31. Red1 $36 {[%emt 0:00:30][%mdl 2048] Black is under pressure.} Rxd4 {[%emt 0:00:30]} 32. Nxd4 {[%emt 0:00:30]} Bd5 {[%emt 0:00:30]} 33. f5 {[%emt 0:00:30][%cal Bf4f5,Bf5e6,Be6e7][%mdl 32]} Qb8 {[%emt 0:00:30]} (33... Qc7 $5 {[%cal Rc7e5]}) 34. Qf4 {[%emt 0:00:30]} f6 {[%emt 0:00:30]} 35. fxe6 {[%emt 0:00:30] [#] aiming for Nf5.} e3 $2 {[%emt 0:00:30][%mdl 8192] Loses the game.} (35... Qc7 $1 $11 {and Black stays safe.}) 36. Qxe3 $18 {[%emt 0:00:30]} Rf8 {[%emt 0:04:53]} (36... Re8 37. exf6 gxf6) 37. e7 {[%emt 0:00:30]} Re8 {[%emt 0:00:22]} 38. exf6 {[%emt 0:00:30] White threatens Nf5 and mate.} gxf6 {[%emt 0:00:30]} 39. Nf5 {[%emt 0:00:00] White mates.} Bc4 {[%emt 0:00:19]} 40. Nd6 {[%emt 0:01:00]} Rxe7 {[%emt 0:00:43] Black is weak on the dark squares} 41. Qxe7 {[%emt 0:00:30]} Qb6+ {[%emt 0:00:30]} 42. Kg2 {[%emt 0:00:00] Weighted Error Value: White=0.14 (very precise) /Black=0.46} 1-0

[Event "TUR-ch U13-18 Open 2023"]
[Site "Antalya"]
[Date "2023.01.24"]
[Round "4"]
[White "Yildiz, Tunahan"]
[Black "Kaynak, Deniz Can"]
[Result "1-0"]
[ECO "A28"]
[WhiteElo "1792"]
[BlackElo "1620"]
[Annotator "NA RC COMBH"]
[PlyCount "49"]
[EventDate "2023.01.17"]
[EventType "swiss"]
[EventCountry "TUR"]
[SourceTitle "playchess.com"]
[Source "ChessBase"]
[SourceQuality "1"]
[TimeControl "5400+30"]

1. c4 {[%emt 0:01:00]} e5 {[%emt 0:01:00]} 2. Nc3 {[%emt 0:00:30]} Nc6 {[%emt 0:00:00]} 3. Nf3 {[%emt 0:01:30]} Nf6 {[%emt 0:05:00]} 4. e4 {[%emt 0:00:30]} Bc5 {[%emt 0:07:30]} 5. Nxe5 {[%emt 0:01:30]} Nxe5 {[%emt 0:00:30]} 6. d4 {[%emt 0:00:30]} Bb4 {[%emt 0:00:30]} 7. dxe5 {[%emt 0:00:00]} Nxe4 {[%emt 0:02:30]} 8. Qf3 {[%emt 0:00:00]} Nxc3 {[%emt 0:21:30]} 9. bxc3 {[%emt 0:00:00]} Ba5 {[%emt 0:02:30]} 10. Bf4 {[%emt 0:09:00]} d6 {[%emt 0:13:30]} 11. O-O-O {[%emt 0:08:30]} O-O {[%emt 0:00:30]} 12. exd6 {[%emt 0:12:30]} Qe8 {[%emt 0:03:30]} 13. Kb2 {[%emt 0:24:30]} Qa4 {[%emt 0:07:30]} 14. Bd3 {[%emt 0:02:30]} Be6 {[%emt 0:10:30]} 15. Qe4 {[%emt 0:01:30]} g6 {[%emt 0:01:30]} 16. Bh6 {[%emt 0:03:30]} cxd6 {[%emt 0:02:07]} 17. Qd4 {[%emt 0:03:30]} f6 {[%emt 0:00:30]} 18. Bxf8 {[%emt 0:00:30]} Rxf8 {[%emt 0:00:00]} 19. Bc2 {[%emt 0:01:30]} Qc6 {[%emt 0:00:07]} 20. Qxd6 {[%emt 0:00:30]} Qxc4 {[%emt 0:00:47]} 21. Qxe6+ {[%emt 0:00:30]} Qxe6 {[%emt 0:00:30]} 22. Bb3 {[%emt 0:00:00]} Bxc3+ {[%emt 0:00:00]} 23. Kxc3 {[%emt 0:03:00]} Rc8+ {[%emt 0:00:00]} 24. Kb4 {[%emt 0:00:00]} a5+ {[%emt 0:00:54]} 25. Kb5 {[%emt 0:00:00]} 1-0